bitfinex/quotes_SOLUSD_20250123
["timestamp","ask_amount","ask_price","bid_price","bid_amount"]
[1737645851166,4.0495,246.95,246.78,312.0]
[1737645851367,30.76675913,246.96,246.78,312.0]
[1737645851543,0.063,246.97,246.74,20.0]
[1737645851742,30.76675913,246.94,246.75,23.776884]
[1737645851948,30.76675913,246.94,246.78,20.0]
[1737645852143,30.76675913,246.92,246.78,20.0]
[1737645852449,30.76675913,246.88,246.73,4.053]
[1737645852675,30.76675913,246.86,246.73,4.053]
[1737645853166,30.76675913,246.8,246.61,10.1374]
[1737645853362,30.76675913,246.85,246.62,90.8548]
[1737645853572,30.76675913,246.85,246.62,121.2659]
[1737645853753,30.76675913,246.83,246.65,20.0]
[1737645854081,30.76675913,246.93,246.68,1.0]
[1737645854248,30.76675913,246.91,246.76,20.0]
[1737645854574,30.76675913,246.91,246.77,316.0523]
[1737645854751,30.76675913,246.89,246.77,316.0523]
[1737645855576,30.79675913,246.96,246.77,4.0523]
[1737645855757,30.79675913,246.96,246.8,20.0]
[1737645856158,30.76675913,246.95,246.81,20.0]
[1737645856370,0.03,246.96,246.85,20.0]
[1737645857250,0.03,246.96,246.89,20.0]
[1737645857466,0.063,246.97,246.89,20.0]
[1737645857467,0.063,247.12,246.93,20.0]
[1737645857649,0.063,247.12,246.97,20.0]
[1737645858264,30.76675913,247.11,246.93,20.0]
[1737645858473,30.76675913,247.11,246.9,86.8]
[1737645858474,30.76675913,247.11,246.94,14.1734]
[1737645858657,30.76675913,247.04,246.86,14.1779]
[1737645858851,30.76675913,247.07,246.86,4.0508]
[1737645859097,30.76675913,247.01,246.86,4.0508]
[1737645859284,30.76675913,246.97,246.82,6.7737]
[1737645859461,30.76675913,246.95,246.82,6.7737]
[1737645859660,30.76675913,246.93,246.82,4.0515]
[1737645859872,30.76675913,246.97,246.82,24.0515]
[1737645860171,30.76675913,247.04,246.82,24.0515]
[1737645860356,30.76675913,247.06,246.86,20.0]
[1737645860555,30.76675913,247.08,246.9,20.0]
[1737645860761,30.76675913,247.04,246.9,20.0]
[1737645860962,23.776884,247.03,246.9,20.0]
[1737645861160,30.76675913,247.0,246.87,4.0507]
[1737645861373,30.76675913,246.98,246.87,4.0507]
[1737645861883,30.76675913,247.11,246.9,20.0]
[1737645862069,30.76675913,247.15,246.92,2.4161]
[1737645862263,30.76675913,247.15,246.96,20.0]
[1737645862461,30.76675913,247.15,246.97,14.1716]
[1737645862657,30.76675913,247.15,247.0,20.0]
[1737645863286,30.76675913,247.08,246.97,4.049]
[1737645863458,30.76675913,247.02,246.84,20.2556]
[1737645863657,30.76675913,247.08,246.8,2.4563]
[1737645863658,30.76675913,246.99,246.85,4.051]
[1737645863857,30.76675913,247.03,246.85,4.051]
[1737645864085,30.76675913,247.01,246.85,4.051]
[1737645864483,23.776884,247.0,246.84,20.0]
[1737645864981,23.776884,247.0,246.81,326.1808]
[1737645865180,23.776884,247.0,246.81,14.1808]
[1737645865390,23.776884,246.96,246.81,4.0516]
[1737645865564,23.776884,246.92,246.81,4.0516]
[1737645865760,30.76675913,246.95,246.81,4.0516]
[1737645865969,30.76675913,246.99,246.81,4.0516]
[1737645866275,23.776884,247.0,246.81,4.0516]
[1737645866603,23.776884,247.0,246.85,4.051]
[1737645866880,4.0467,247.11,246.85,4.051]
[1737645867081,30.82975913,247.12,246.92,20.0]
[1737645867677,30.76675913,247.07,246.82,88.41739478]
[1737645867865,0.063,247.12,246.82,88.41739478]
[1737645867866,30.76675913,247.09,246.85,54.689]
[1737645868072,30.76675913,247.11,246.89,20.0]
[1737645868274,30.76675913,247.11,246.98,20.0]
[1737645868275,0.03,247.0,246.98,20.0]
[1737645868478,30.76675913,247.11,246.99,24.0487]
[1737645869373,0.063,247.12,246.99,14.1705]
[1737645870175,0.063,247.12,247.02,20.0]
[1737645870394,0.03,247.21,247.03,43.776884]
[1737645870581,0.03,247.21,247.08,20.0]
[1737645871186,0.03,247.21,247.07,20.0]
[1737645871783,30.76675913,247.17,247.04,4.0479]
[1737645872093,30.76675913,247.15,247.0,4.0484]
[1737645872481,30.76675913,247.19,247.0,4.0484]
[1737645872685,0.03,247.21,247.0,4.0484]
[1737645872914,30.76675913,247.18,247.0,4.0484]
[1737645873087,23.776884,247.17,247.0,4.0484]
[1737645873289,4.0752,247.21,247.0,4.0484]
[1737645873290,30.76675913,247.16,247.0,4.0484]
[1737645873492,30.76675913,247.16,247.01,20.0]
[1737645873690,30.76675913,247.18,247.02,20.0]
[1737645873884,30.76675913,247.16,247.02,20.0]
[1737645874203,23.776884,247.09,246.93,4.0497]
[1737645874399,23.776884,247.05,246.92,6.4884]
[1737645874702,30.76675913,247.1,246.92,6.4884]
[1737645874886,23.776884,247.09,246.92,6.4884]
[1737645875092,4.0461,247.15,246.95,20.0]
[1737645875305,30.76675913,247.11,246.95,20.0]
[1737645875604,23.776884,247.08,246.92,6.4884]
[1737645875801,14.1614,247.15,246.95,20.0]
[1737645876018,34.81205913,247.2,246.96,43.776884]
[1737645876382,30.76675913,247.22,246.96,43.776884]
[1737645876711,30.76675913,247.18,246.97,14.1716]
[1737645876880,23.776884,247.14,246.97,14.1716]
[1737645877085,54.54364313,247.14,246.97,14.1716]
[1737645877298,20.0,247.15,247.0,20.0]
[1737645877711,23.776884,247.14,247.0,20.0]
[1737645878024,50.76675913,247.11,246.97,4.049]
[1737645878186,23.776884,247.1,246.97,4.049]
[1737645878382,30.76675913,247.07,246.89,4.0503]
[1737645878783,30.76675913,247.16,246.93,43.776884]
[1737645878982,34.81205913,247.2,246.93,43.776884]
[1737645879195,4.0453,247.2,246.93,43.776884]
[1737645879394,0.063,247.25,246.95,23.776884]
[1737645879608,0.063,247.25,247.02,20.0]
[1737645879796,0.063,247.25,247.1,20.0]
[1737645879992,0.063,247.25,247.07,23.776884]
[1737645880309,0.063,247.25,247.16,20.0]
[1737645880482,0.063,247.25,247.2,20.0]
[1737645880810,0.063,247.25,247.08,10.3514]
[1737645880811,0.063,247.25,247.09,14.1648]
[1737645881187,0.063,247.25,247.1,23.776884]
[1737645881383,0.063,247.25,247.24,312.0]
[1737645881617,0.063,247.25,247.13,20.0]
[1737645881799,0.063,247.25,247.12,20.0]
[1737645882389,4.1074,247.25,247.09,14.1648]
[1737645882613,0.063,247.25,247.09,14.1648]
[1737645882996,0.063,247.25,247.1,23.776884]
[1737645883202,0.063,247.25,247.13,20.0]
[1737645883714,4.1076,247.25,247.09,4.0471]
[1737645884103,0.063,247.25,247.09,4.0471]
[1737645884402,4.1075,247.25,247.13,20.0]
[1737645884611,4.1075,247.25,247.16,312.0]
[1737645884789,23.776884,247.22,247.07,4.0473]
[1737645884993,4.1075,247.25,247.07,4.0473]
[1737645885395,0.063,247.25,247.11,20.0]
[1737645885722,0.063,247.25,247.19,20.0]
[1737645885892,0.063,247.25,247.1,20.0]
[1737645886092,4.1075,247.25,247.1,20.0]
[1737645886294,0.063,247.25,247.1,20.0]
[1737645886517,0.063,247.25,247.07,4.0473]
[1737645886810,0.063,247.25,247.14,20.0]
[1737645887734,4.1075,247.25,247.08,4.0471]
[1737645887897,0.063,247.25,247.08,4.0471]
[1737645888218,0.063,247.25,247.11,20.0]
[1737645888401,0.063,247.25,247.11,43.776884]
[1737645888601,0.063,247.25,247.08,4.0471]
[1737645889490,0.063,247.25,247.11,20.0]
[1737645889696,4.1048,247.42,247.14,1.0]
[1737645889895,4.1048,247.42,247.15,20.0]
[1737645890200,23.776884,247.39,247.23,20.0]
[1737645890517,30.76675913,247.36,247.09,16.172716]
[1737645890723,30.76675913,247.36,247.17,312.0]
[1737645890936,30.76675913,247.38,247.22,20.0]
[1737645891233,30.82975913,247.42,247.22,20.0]
[1737645891401,0.063,247.42,247.26,20.0]
[1737645891816,0.063,247.42,247.34,20.0]
[1737645892017,0.063,247.5,247.42,20.0]
[1737645892226,4.0373,247.69,247.42,20.0]
[1737645892508,39.46786823,247.79,247.54,20.0]
[1737645892827,39.46786823,247.79,247.51,23.776884]
[1737645892828,8.7011091,247.79,247.62,20.0]
[1737645893118,8.7011091,247.79,247.68,20.0]
[1737645893497,0.03,247.92,247.72,20.0]
[1737645893917,0.03,247.92,247.82,20.0]
[1737645894419,4.0636,247.92,247.74,2.3931]
[1737645894617,0.03,247.92,247.74,2.3931]
[1737645894793,0.03,247.92,247.78,20.0]
[1737645894994,0.03,247.92,247.74,2.3931]
[1737645895203,30.76675913,247.84,247.62,2.4368]
[1737645895516,30.76675913,247.82,247.62,23.29181865]
[1737645895817,23.776884,247.75,247.62,2.4368]
[1737645896219,30.76675913,247.76,247.62,22.4368]
[1737645896394,0.03,247.92,247.66,20.0]
[1737645896600,0.03,247.72,247.66,20.0]
[1737645897004,0.03,247.72,247.67,4.0376]
[1737645897201,0.03,247.72,247.71,312.0]
[1737645897606,20.0,247.88,247.71,30.83166198]
[1737645897922,5.91367585,247.78,247.71,30.83166198]
[1737645898120,30.76675913,247.77,247.67,12.26976783]
[1737645898415,30.76675913,247.75,247.67,12.26976783]
[1737645898614,30.76675913,247.71,247.67,12.26976783]
[1737645898808,30.76675913,247.69,247.67,12.26976783]
[1737645899015,4.0374,247.68,247.67,12.26976783]
[1737645899599,34.80415913,247.68,247.67,12.26976783]
[1737645899804,89.34780226,247.68,247.67,6.783e-05]
[1737645900024,1.0,247.61,247.36,9.4731]
[1737645900209,30.76675913,247.59,247.37,4.0424]
[1737645900510,30.76675913,247.57,247.37,4.0424]
[1737645900722,30.76675913,247.46,247.19,10.1136]
[1737645901027,30.76675913,247.56,247.22,4.0449]
[1737645901028,30.76675913,247.41,247.22,4.0449]
[1737645901238,30.76675913,247.36,247.14,4.0462]
[1737645901401,20.0,247.27,247.1,2.5323]
[1737645901595,30.76675913,247.24,247.07,28.62703307]
[1737645901799,30.76675913,247.24,247.08,4.0471]
[1737645902015,30.76675913,247.32,247.12,4.0466]
[1737645902193,30.76675913,247.34,247.12,4.0466]
[1737645902513,30.76675913,247.36,247.12,14.1631]
[1737645902706,30.76675913,247.4,247.15,20.0]
[1737645902914,162.6277503,247.45,247.17,1.0]
[1737645903127,131.86099117,247.45,247.3,20.0]
[1737645903334,131.86099117,247.45,247.38,20.0]
[1737645903633,131.86099117,247.45,247.35,1.0]
[1737645903797,30.76675913,247.64,247.47,20.0]
[1737645903994,30.76675913,247.64,247.44,312.0]
[1737645904223,30.76675913,247.68,247.35,2.0]
[1737645904423,30.76675913,247.7,247.36,20.31349011]
[1737645904608,30.0,247.87,247.29,203.19986492]
[1737645904609,1.0,247.61,247.33,1.62886572]
[1737645904816,46.23381718,247.63,247.37,0.739205]
[1737645905124,46.23381718,247.63,247.24,2.5375]
[1737645905125,1.0,247.52,247.24,2.5375]
[1737645905301,20.0,247.44,247.12,35.06109372]
[1737645905507,1.0,247.47,247.12,35.06109372]
[1737645905727,30.76675913,247.36,247.12,14.1631]
[1737645905915,30.76675913,247.42,247.13,21.89164037]
[1737645906135,30.76675913,247.39,247.12,14.1631]
[1737645906318,30.76675913,247.39,247.13,20.89164037]
[1737645906513,20.0,247.39,247.16,20.0]
[1737645906843,30.76675913,247.38,247.12,14.1631]
[1737645907027,20.0,247.31,247.12,14.1631]
[1737645907208,20.0,247.29,247.12,14.1631]
[1737645907407,30.76675913,247.29,247.12,4.0466]
[1737645907725,4.0425,247.37,247.12,4.0466]
[1737645907935,20.0,247.35,247.02,23.776884]
[1737645908134,20.0,247.35,247.01,1.63724858]
[1737645908357,7.92641194,247.38,247.12,1.0]
[1737645908563,7.92641194,247.38,247.2,23.776884]
[1737645908731,1.194e-05,247.38,247.29,20.0]
[1737645908926,30.76675913,247.64,247.37,20.0]
[1737645909254,0.03,247.67,247.42,20.0]
[1737645909564,0.03,247.67,247.55,20.0]
[1737645909749,30.76675913,247.86,247.63,20.0]
[1737645909954,30.76675913,247.82,247.63,20.0]
[1737645910134,20.0,247.79,247.45,20.65899495]
[1737645910334,30.76675913,247.82,247.64,312.0]
[1737645910567,30.76675913,247.76,247.64,312.0]
[1737645910853,20.0,247.65,247.38,34.36]
[1737645911055,30.76675913,247.63,247.44,16.154341]
[1737645911229,30.76675913,247.57,247.45,4.0412]
[1737645911427,1.0,247.78,247.49,20.0]
[1737645911619,30.76675913,247.69,247.54,23.776884]
[1737645911825,30.76675913,247.71,247.54,23.776884]
[1737645912043,30.76675913,247.69,247.53,20.0]
[1737645912254,30.76675913,247.67,247.48,20.0]
[1737645912438,30.76675913,247.63,247.48,20.0]
[1737645912727,1.0,247.76,247.48,20.0]
[1737645912728,30.76675913,247.67,247.48,20.0]
[1737645913229,30.76675913,247.6,247.49,4.0405]
[1737645913432,4.0379,247.66,247.49,4.0405]
[1737645913433,20.0,247.63,247.58,24.66812378]
[1737645913750,30.76675913,247.6,247.58,24.66812378]
[1737645914049,30.76675913,247.59,247.58,24.66812378]
[1737645914223,43.776884,247.56,247.49,37.00218567]
[1737645914540,30.76675913,247.52,247.49,37.00218567]
[1737645914743,30.76675913,247.63,247.5,20.0]
[1737645915039,30.76675913,247.63,247.49,4.0405]
[1737645915221,10.0896,247.78,247.49,4.0405]
[1737645915222,30.76675913,247.61,247.49,4.0405]
[1737645915423,30.76675913,247.63,247.5,1.0]
[1737645915759,30.76675913,247.52,247.44,37.00218567]
[1737645915961,30.76675913,247.5,247.44,37.00218567]
[1737645916157,30.76675913,247.59,247.44,41.04338567]
[1737645916455,30.76675913,247.61,247.47,20.0]
[1737645916623,30.76675913,247.65,247.51,23.776884]
[1737645916827,30.76675913,247.65,247.52,1.0]
[1737645917370,30.76675913,247.75,247.61,1.0]
[1737645917525,30.76675913,247.83,247.67,24.776884]
[1737645917722,30.76675913,247.85,247.69,1.0]
[1737645918036,0.03,247.88,247.79,23.776884]
[1737645918665,0.03,247.88,247.68,1.0]
[1737645918666,30.79675913,247.88,247.68,1.0]
[1737645918961,30.76675913,247.86,247.75,1.0]
[1737645919194,34.83095913,247.88,247.74,4.0364]
[1737645919450,30.76675913,247.86,247.67,20.0]
[1737645919657,30.76675913,247.82,247.67,1.0]
[1737645919853,0.03,247.88,247.76,1.0]
[1737645920043,30.79675913,247.88,247.73,1.0]
[1737645920359,20.0,247.77,247.66,312.0]
[1737645920663,30.76675913,247.82,247.7,1.0]
[1737645920832,30.76675913,247.75,247.58,1.0]
[1737645921027,30.76675913,247.84,247.72,1.0]
[1737645921261,51.10722888,247.87,247.72,4.0367]
[1737645921560,20.97390907,247.79,247.6,1.0]
[1737645921764,18.47213691,247.74,247.53,14.1395]
[1737645922266,11.95862726,247.64,247.53,14.1395]
[1737645922438,11.95862726,247.64,247.56,20.0]
[1737645922645,11.95862726,247.64,247.52,6.88203424]
[1737645922984,10.47074208,247.64,247.52,6.88203424]
[1737645923170,4.208e-05,247.64,247.53,1.0]
[1737645923362,4.208e-05,247.64,247.52,6.88203424]
[1737645923363,4.208e-05,247.64,247.6,312.0]
[1737645923675,18.47213691,247.74,247.52,7.62079128]
[1737645923676,18.47213691,247.74,247.53,34.339]
[1737645923886,18.47213691,247.74,247.53,14.1395]
[1737645924086,18.47213691,247.74,247.54,23.776884]
[1737645924277,18.47213691,247.74,247.61,1.0]
[1737645924587,0.03,247.92,247.66,1.0]
[1737645924889,0.03,247.92,247.64,1.0]
[1737645925072,0.03,247.92,247.63,34.3253]
[1737645925396,0.03,247.92,247.64,3.6299]
[1737645925688,0.03,247.92,247.67,1.0]
[1737645925991,0.03,247.92,247.72,20.0]
[1737645926189,0.03,247.92,247.8,20.0]
[1737645926360,0.03,247.92,247.79,23.776884]
[1737645926560,0.03,247.92,247.81,20.0]
[1737645926762,0.03,247.92,247.91,312.0]
[1737645926964,51.40156724,248.08,247.91,312.0]
[1737645927264,24.12323504,248.09,247.95,23.776884]
[1737645927677,20.09243504,248.09,247.98,20.0]
[1737645927882,0.063,248.09,247.99,23.776884]
[1737645928064,30.76675913,248.12,247.94,5.033]
[1737645928262,30.76675913,248.06,247.9,1.0]
[1737645928572,30.76675913,248.04,247.9,1.0]
[1737645928875,20.0,247.99,247.81,1.0]
[1737645929073,30.76675913,247.93,247.77,1.0]
[1737645929377,4.0335,247.92,247.77,1.0]
[1737645929576,4.0335,247.92,247.69,1.0]
[1737645929577,20.0,247.8,247.69,1.0]
[1737645929877,20.0,247.8,247.65,4.0378]
[1737645930068,30.76675913,247.79,247.68,1.0]
[1737645930271,20.0,247.78,247.67,1.0]
[1737645930580,20.0,247.78,247.64,1.0]
[1737645930797,20.0,247.78,247.65,1.0]
[1737645930958,30.76675913,247.88,247.72,1.0]
[1737645931167,4.0343,247.87,247.73,23.776884]
[1737645931374,20.0,247.85,247.75,23.776884]
[1737645931573,30.76675913,248.01,247.83,23.776884]
[1737645931782,20.0,247.95,247.81,1.0]
[1737645931982,71.69127467,247.95,247.78,1.0]
[1737645932174,20.89899241,247.98,247.78,2.0]
[1737645932382,20.38070445,247.96,247.81,1.0]
[1737645932694,40.66310725,247.92,247.77,37.95363118]
[1737645932862,20.1469466,248.01,247.81,1.0]
[1737645933067,30.76675913,247.93,247.77,37.95363118]
[1737645933287,20.28170352,248.05,247.78,4.0358]
[1737645933481,20.38070445,247.96,247.78,4.0358]
[1737645933680,30.76675913,247.97,247.8,20.0]
[1737645933882,30.76675913,248.03,247.87,1.0]
[1737645934065,51.14119992,248.03,247.88,23.776884]
[1737645934267,20.42857245,248.0,247.88,23.776884]
[1737645934566,30.76675913,247.99,247.85,1.0]
[1737645934785,30.76675913,247.99,247.8,2.0]
[1737645934967,20.92451554,247.95,247.79,1.0]
[1737645935287,50.76675913,247.9,247.77,37.95363118]
[1737645935590,4.0329,247.96,247.81,1.0]
[1737645935794,20.08647396,247.97,247.82,24.776884]
[1737645936000,30.76675913,247.96,247.82,23.776884]
[1737645936193,30.76675913,247.89,247.78,1.0]
[1737645936499,20.0,247.92,247.81,24.776884]
[1737645936680,4.0326,247.98,247.84,24.776884]
[1737645937273,20.0,247.92,247.79,1.0]
[1737645937498,20.0,247.92,247.78,1.0]
[1737645937673,30.76675913,247.95,247.78,1.0]
[1737645937877,30.76675913,247.86,247.77,36.95363118]
[1737645938408,20.0,247.86,247.78,23.776884]
[1737645938714,20.0,247.86,247.77,36.95363118]
[1737645938885,20.0,247.86,247.78,1.0]
[1737645939091,30.76675913,247.91,247.77,40.98953118]
[1737645939284,30.76675913,247.97,247.81,1.0]
[1737645939480,30.76675913,247.97,247.77,40.98953118]
[1737645939481,4.0325,247.99,247.87,1.0]
[1737645939717,4.0325,247.99,247.88,24.776884]
[1737645939907,30.76675913,248.06,247.91,23.776884]
[1737645940182,30.76675913,247.98,247.82,1.0]
[1737645940382,30.76675913,247.96,247.83,1.0]
[1737645940695,30.76675913,247.98,247.85,1.0]
[1737645940904,23.776884,248.04,247.79,1.0]
[1737645940905,20.0,247.95,247.79,1.0]
[1737645941212,20.0,247.93,247.78,1.0]
[1737645941498,4.0334,247.93,247.8,5.0353]
[1737645941802,4.0334,247.93,247.8,1.0]
[1737645941803,24.0334,247.93,247.8,1.0]
[1737645942098,20.0,247.9,247.8,1.0]
[1737645942485,4.0334,247.93,247.8,1.0]
[1737645942796,20.0,247.89,247.8,1.0]
[1737645942999,20.0,247.89,247.77,37.95363118]
[1737645943199,20.0,247.89,247.81,1.0]
[1737645943379,4.033,247.95,247.81,1.0]
[1737645943585,4.033,247.95,247.83,23.776884]
[1737645943802,4.033,247.95,247.77,37.95363118]
[1737645943803,20.0,247.92,247.77,37.95363118]
[1737645943994,20.0,247.89,247.77,36.95363118]
[1737645944193,30.76675913,247.88,247.77,36.95363118]
[1737645944398,30.76675913,247.9,247.77,36.95363118]
[1737645944595,50.76675913,247.85,247.77,36.95363118]
[1737645944813,30.76675913,247.83,247.77,36.95363118]
[1737645944991,20.0,247.78,247.77,36.95363118]
[1737645945190,4.0358,247.78,247.77,3.118e-05]
[1737645945403,20.0,247.7,247.53,1.0]
[1737645945629,30.76675913,247.62,247.5,0.063]
[1737645945826,20.0,247.57,247.5,0.063]
[1737645946536,20.0,247.53,247.5,0.063]
[1737645946720,30.76675913,247.52,247.5,0.063]
[1737645946914,30.76675913,247.52,247.34,1.0]
[1737645947115,20.0,247.41,247.3,1.0]
[1737645947313,20.0,247.39,247.29,1.0]
[1737645947623,20.0,247.39,247.3,1.0]
[1737645947827,30.76675913,247.44,247.29,5.0436]
[1737645948229,30.76675913,247.5,247.4,1.0]
[1737645948431,30.76675913,247.5,247.41,23.776884]
[1737645948610,30.76675913,247.6,247.49,1.0]
[1737645948811,30.76675913,247.6,247.51,1.0]
[1737645949025,30.76675913,247.6,247.52,1.0]
[1737645949246,30.76675913,247.62,247.52,1.0]
[1737645949531,30.76675913,247.68,247.51,1.0]
[1737645949833,20.0,247.63,247.55,1.0]
[1737645950036,20.0,247.63,247.58,1.0]
[1737645950327,30.76675913,247.72,247.55,2.0]
[1737645950507,30.76675913,247.66,247.54,1.0]
[1737645950709,20.0,247.61,247.49,1.0]
[1737645950910,30.76675913,247.62,247.53,1.0]
[1737645951115,30.76675913,247.6,247.49,5.0404]
[1737645951351,30.76675913,247.6,247.51,1.0]
[1737645951648,23.92025073,247.55,247.53,1.0]
[1737645951814,23.92025073,247.55,247.36,1.0]
[1737645951815,23.92025073,247.55,247.28,20.48306149]
[1737645952011,23.92025073,247.55,247.32,20.0]
[1737645952338,23.92025073,247.55,247.39,2.619]
[1737645952509,23.92025073,247.55,247.34,20.94929762]
[1737645952709,23.92025073,247.55,247.35,0.73926477]
[1737645952945,23.92025073,247.55,247.38,20.2118]
[1737645953121,1.0,247.57,247.38,20.2118]
[1737645953447,2.0,247.56,247.38,20.2118]
[1737645953644,5.99582931,247.58,247.47,312.0]
[1737645953835,5.99582931,247.58,247.48,23.776884]
[1737645954034,5.99582931,247.58,247.55,20.0]
[1737645954242,23.92025073,247.66,247.55,20.0]
[1737645954539,23.92025073,247.66,247.56,23.776884]
[1737645954723,23.92025073,247.66,247.46,20.0]
[1737645954925,1.0,247.61,247.46,20.0]
[1737645955120,1.0,247.53,247.32,20.2167]
[1737645955317,1.0,247.49,247.35,14.1499]
[1737645955546,2.0,247.53,247.35,14.1499]
[1737645955711,20.0,247.55,247.35,14.1499]
[1737645955712,2.0,247.55,247.35,34.3641]
[1737645955916,1.0,247.55,247.35,34.3641]
[1737645956219,1.0,247.56,247.38,20.0]
[1737645956420,1.0,247.52,247.35,34.3641]
[1737645956616,1.0,247.44,247.35,14.1499]
[1737645956823,2.0,247.46,247.35,4.0428]
[1737645957141,1.0,247.41,247.35,4.0428]
[1737645957520,1.0,247.47,247.37,20.0]
[1737645958046,2.0,247.5,247.35,27.819684]
[1737645958251,1.0,247.54,247.36,23.776884]
[1737645958414,1.0,247.49,247.37,20.0]
[1737645958617,1.0,247.52,247.37,20.0]
[1737645958851,2.0,247.56,247.42,23.776884]
[1737645959055,2.0,247.58,247.46,23.776884]
[1737645959352,2.0,247.62,247.46,23.776884]
[1737645959537,1.0,247.62,247.48,23.776884]
[1737645959855,23.92025073,247.66,247.55,20.0]
[1737645960020,23.92025073,247.66,247.6,23.776884]
[1737645960217,3.47375073,247.66,247.6,23.776884]
[1737645960561,5.073e-05,247.66,247.51,45.38425654]
[1737645960755,5.073e-05,247.66,247.59,312.0]
[1737645960928,1.0,247.65,247.59,312.0]
[1737645961261,5.073e-05,247.66,247.63,43.776884]
[1737645961426,5.073e-05,247.66,247.65,23.776884]
[1737645962240,1.0,247.69,247.48,4.0407]
[1737645962416,1.0,247.61,247.48,4.0407]
[1737645962613,1.0,247.58,247.36,14.1493]
[1737645962816,1.0,247.54,247.36,14.1493]
[1737645963027,1.0,247.52,247.36,14.1493]
[1737645963235,0.03,247.7,247.36,54.5761]
[1737645963421,1.0,247.68,247.45,20.0]
[1737645963626,0.03,247.7,247.45,20.0]
[1737645963627,1.03,247.7,247.45,20.0]
[1737645963819,1.03,247.7,247.36,54.5761]
[1737645963820,1.03,247.7,247.47,20.0]
[1737645964021,1.0,247.64,247.47,20.0]
[1737645964223,0.03,247.7,247.47,20.0]
[1737645964522,1.0,247.66,247.6,23.776884]
[1737645965026,0.03,247.7,247.6,23.776884]
[1737645965230,1.0,247.63,247.59,312.0]
[1737645965455,1.0,247.58,247.45,4.0412]
[1737645965823,1.0,247.69,247.46,23.776884]
[1737645966143,0.03,247.7,247.57,20.0]
[1737645966337,30.76675913,247.87,247.57,20.0]
[1737645966338,1.0,247.84,247.58,23.776884]
[1737645966657,1.0,247.84,247.57,43.6]
[1737645966658,1.0,247.88,247.61,20.77912224]
[1737645966828,1.0,247.88,247.6,20.4038242]
[1737645967028,1.0,247.88,247.71,20.0]
[1737645967354,1.0,247.85,247.79,20.0]
[1737645967733,0.03,247.95,247.8,14.1242]
[1737645968036,0.03,247.95,247.92,20.0]
[1737645968235,1.0,248.09,248.0,20.0]
[1737645968542,1.0,247.98,247.94,312.0]
[1737645968741,34.79765913,248.08,247.8,4.0355]
[1737645968742,1.0,247.92,247.8,4.0355]
[1737645968928,1.0,247.93,247.8,4.0355]
[1737645969127,1.0,247.86,247.75,4.0363]
[1737645969345,1.0,247.85,247.59,11.1237]
[1737645969641,1.0,247.8,247.62,14.1345]
[1737645969849,2.0,247.82,247.75,6.21700981]
[1737645970649,1.0,247.91,247.8,23.776884]
[1737645970850,1.0,247.85,247.75,6.21700981]
[1737645971166,2.0,247.78,247.75,6.21700981]
[1737645971330,1.0,247.79,247.75,6.21700981]
[1737645971535,1.0,247.77,247.75,6.21700981]
[1737645971836,1.0,247.82,247.75,6.21700981]
[1737645972165,1.0,247.96,247.87,20.0]
[1737645972459,1.0,247.95,247.78,20.0]
[1737645972659,1.0,247.94,247.78,20.0]